Cogmind - Beta 15 @@@ ROGUE MODE // 2025.08.20 @ 17:27:29 Player: Tuja Result: Destroyed by G-47 Trooper with Particle Gun Performance ------------- Evolutions (2) 1000 Regions Visited (4) 800 Robots Destroyed (40) 200 Value Destroyed (906) 906 Prototype IDs (1) 20 Alien Tech Used (0) 0 Bonus (0) 0 TOTAL SCORE: 2926 Bonus ------- None Cogmind --------- Core Integrity 0/550 Matter 90/300 Energy 66/100 System Corruption 0% Temperature Cool (32) Movement Rolling (95) Ox1 Location -8/Materials Parts ------- > --- POWER (1) -------- (None) > --- PROPULSION (4) --- Wheel > --- UTILITY (4) ------ Medium Storage Unit Improved Signal Interpreter > --- WEAPON (2) ------- Beam Rifle Light Assault Rifle > --- INVENTORY (10) --- Ion Engine Cryofiber Web Large Matter Pod (150) Reaction Control System Light Armor Plating Mining Laser Peak State ------------ > --- POWER ------------ Light Ion Engine > --- PROPULSION ------- Hover Unit Airjet Airjet Airjet > --- UTILITY ---------- Medium Storage Unit Improved Sensor Array Improved Signal Interpreter Light Armor Plating > --- WEAPON ----------- Improved Assault Rifle Mining Laser > --- INVENTORY -------- Ion Engine Airjet Cryofiber Web Large Matter Pod Weapon Shielding Light Armor Plating Beam Rifle Beam Rifle Light Assault Rifle Mini Grenade Launcher [Rating: 24] Favorites ----------- Power Ion Engine Engine Ion Engine Propulsion Airjet Wheel Compact Wheel Hover Unit Airjet Utility Light Armor Plating Device Structural Scanner Storage Medium Storage Unit Processor Improved Signal Interpreter Protection Light Armor Plating Weapon Medium Laser Energy Gun Medium Laser Ballistic Gun Light Assault Rifle Launcher Mini Grenade Launcher Special Weapon Mining Laser Build | -11 -10 -10 -9 -8 ------- Run | Yrd Mat Min Mat Mat Slots Evolved 4 | . . . 2 2 Power . | . . . . . Propulsion 2 | . . . 1 1 Utility 2 | . . . 1 1 Weapon . | . . . . . Parts Attached 34 | 6 2 1 17 8 Power 2 | 1 . . 1 . Engine 2 | 1 . . 1 . Core . | . . . . . Reactor . | . . . . . Propulsion 10 | 2 . . 5 3 Treads . | . . . . . Leg . | . . . . . Wheel 5 | 2 . . 2 1 Hover 5 | . . . 3 2 Flight . | . . . . . Utility 10 | 1 2 1 4 2 Device 2 | . 1 . . 1 Storage 4 | 1 . 1 2 . Processor 1 | . . . . 1 Hackware . | . . . . . Protection 3 | . 1 . 2 . Artifact . | . . . . . Weapon 12 | 2 . . 7 3 Energy Gun 7 | 2 . . 4 1 Energy Cannon . | . . . . . Ballistic Gun 3 | . . . 3 . Ballistic Cannon . | . . . . . Launcher 1 | . . . . 1 Special Weapon 1 | . . . . 1 Impact Weapon . | . . . . . Slashing Weapon . | . . . . . Piercing Weapon . | . . . . . Special Melee Weapon . | . . . . . Unidentified Prototypes 1 | . . . 1 . Parts Lost 21 | . . . 10 11 Power 2 | . . . 1 1 Propulsion 9 | . . . 4 5 Utility 3 | . . . 1 2 Weapon 7 | . . . 4 3 Highest Loss Streak 10 | . . . 8 10 To Critical Strikes . | . . . . . Average Backups 9 | 1 3 7 14 9 Power 1 | . 1 2 2 1 Propulsion 1 | . . . 2 . Utility 3 | . . 2 5 3 Weapon 2 | . 1 2 3 3 Tool/Special . | . . . . . Unused Backups 8 | . . . 4 4 Power 2 | . . . 1 1 Propulsion . | . . . . . Utility 6 | . . . 3 3 Weapon . | . . . . . Tool/Special . | . . . . . Average Slot Usage (%) 86 | . 96 100 79 84 Engine 9 | . 14 14 8 7 Wheel 14 | . 28 28 13 . Hover 11 | . . . 12 26 Device 7 | . 9 14 4 7 Storage 11 | . 14 14 11 9 Processor 2 | . . . . 8 Protection 5 | . . . 7 8 Energy Gun 15 | . 28 28 13 . Ballistic Gun 6 | . . . 7 14 Peak Build Rating 24 | 6 7 8 19 24 Average Rating 12 | 4 6 7 11 20 On Entrance 7 | . 6 7 8 18 Naked Turns . | . . . . . Heaviest Build 89 | 13 14 89 89 23 Greatest Support 44 | 32 32 32 44 30 Greatest Overweight (x) 6 | 3 . 2 6 4 Average Overweight (x) . | . . . . . Largest Inventory Capacity 25 | 8 8 25 25 10 Average Capacity 13 | 7 8 12 19 10 Most Carried 19 | 2 6 13 19 10 Average Carried 9 | 1 3 7 14 9 Final Capacity 25 | 8 8 25 10 10 Final Carried 13 | 2 6 13 10 6 Class Distribution -------------------- 100% | Mutant Dominant Class ---------------- Mutant | -10/Materials Mutant | -10/Mines Mutant | -9/Materials Mutant | -8/Materials Resources | -11 -10 -10 -9 -8 ----------- Run | Yrd Mat Min Mat Mat Matter Collected 850 | 244 . 283 254 69 Remotely . | . . . . . Salvage Created 1219 | . . 94 843 282 Parts 82 | . . 13 53 16 Haulers Intercepted 2 | . . . 1 1 Recyclers Shooed 8 | . . . 8 . Parts Field Recycled . | . . . . . Retrieved Matter . | . . . . . Parts Self-Destructed . | . . . . . Prevented . | . . . . . Kills | -11 -10 -10 -9 -8 ------- Run | Yrd Mat Min Mat Mat Combat Hostiles Destroyed 28 | . . 6 14 8 Guns 22 | . . 6 14 2 AOE 6 | . . . . 6 Classes Destroyed 9 | . . 1 7 1 Worker 4 | . . . 1 3 Hauler 2 | . . . 1 1 Recycler 3 | . . . 3 . Operator 2 | . . . 2 . Watcher 1 | . . . . 1 Swarmer 11 | . . 6 3 2 Grunt 13 | . . . 9 4 Duelist 3 | . . . 1 2 Sentry 1 | . . . 1 . Best Kill Streak 10 | . . 3 7 10 Combat Bots Only 8 | . . 3 5 8 Max Kills in Single Turn 2 | . . 1 1 2 Gunslinging . | . . . . . Exploded 2 | . . . . 2 Melee . | . . . . . Uniques/NPCs Destroyed . | . . . . . Combat | -11 -10 -10 -9 -8 -------- Run | Yrd Mat Min Mat Mat Hostile Shots Fired 239 | . 1 22 99 117 Missed 52 | . 1 4 19 28 Hits 187 | . . 18 80 89 Melee 6 | . . . 3 3 Projectile 181 | . . 18 77 86 Critical Strikes 2 | . . . 1 1 Damage Taken 2414 | . . 148 988 1278 Core 927 | . . 41 328 558 Absorbed by Shields . | . . . . . Core Remaining (%) 67 | 100 . 83 18 . Volleys Fired 111 | . 1 6 64 40 Largest 2 | . 2 2 2 2 Hottest 100 | . 90 90 90 100 Shots Fired 197 | . 2 12 118 65 Gun 186 | . 2 12 118 54 Cannon . | . . . . . Launcher 10 | . . . . 10 Special 1 | . . . . 1 Kinetic 101 | . . . 55 46 Thermal 82 | . 2 12 59 9 Explosive 10 | . . . . 10 Electromagnetic 4 | . . . 4 . Robot Hit Streak 11 | . . 6 11 9 Robot Miss Streak 4 | . 2 3 4 3 Penetration Max . | . . . . . Secondary Targets 3 | . . 1 2 . Max Gunslinging Chain 1 | . . 1 1 . Shots Hit Robots 129 | . . 8 82 39 Core Hits 80 | . . 6 42 32 Critical Kills . | . . . . . Critical Parts Destroyed . | . . . . . Critical Strikes 4 | . . . 4 . Burn 4 | . . . 4 . Melee Attacks . | . . . . . Impact . | . . . . . Slashing . | . . . . . Piercing . | . . . . . Sneak Attacks . | . . . . . Combat Hostiles . | . . . . . Follow-up Attacks . | . . . . . Damage Inflicted 2225 | . . 94 938 1193 Guns 1501 | . . 94 936 471 Cannons . | . . . . . Explosions 722 | . . . . 722 Melee . | . . . . . Ramming 2 | . . . 2 . Kinetic 719 | . . . 334 385 Thermal 745 | . . 94 565 86 Explosive 722 | . . . . 722 Electromagnetic 37 | . . . 37 . Impact . | . . . . . Slashing . | . . . . . Piercing . | . . . . . Highest Corruption . | . . . . . Average Corruption . | . . . . . Corruption Purged . | . . . . . Corruption Blocked . | . . . . . Overload Shots . | . . . . . Overflow Damage 10 | . . . . 10 Projectiles . | . . . . . Explosions 10 | . . . . 10 Melee . | . . . . . Knockbacks . | . . . . . Impact . | . . . . . Kinetic . | . . . . . Secondary . | . . . . . Self-Inflicted Damage 122 | . . . 1 121 Shots 3 | . . . . 3 Rammed 1 | . . . 1 . Targets Rammed 1 | . . . 1 . Kicked . | . . . . . Crushed . | . . . . . Highest Temperature 389 | . 30 90 389 62 Average Temperature 99 | . 17 46 132 17 Received Heat Transfer 819 | . . . 405 414 Effects 3 | . . . 3 . Shutdowns 1 | . . . 1 . Interference 1 | . . . 1 . Matter Decay 1 | . . . 1 . Siege Activations . | . . . . . Martial Activations . | . . . . . Shielding Activations . | . . . . . Robots Disrupted . | . . . . . Combat Hostiles . | . . . . . Robots Corrupted . | . . . . . Combat Hostiles . | . . . . . Parts Fried . | . . . . . Impact Corruptions . | . . . . . Robots Melted . | . . . . . Combat Hostiles . | . . . . . Parts Melted 2 | . . . 2 . Heat Transferred 2382 | . . 260 1900 222 Parts Sabotaged . | . . . . . Parts Stolen . | . . . . . Parts Stripped . | . . . . . Power Chain Reactions . | . . . . . Alert | -11 -10 -10 -9 -8 ------- Run | Yrd Mat Min Mat Mat Maximum Alert Level 1 | . . . . 1 Low Security (%) 95 | 100 100 100 100 80 Level 1 4 | . . . . 19 Level 2 . | . . . . . Level 3 . | . . . . . Level 4 . | . . . . . Level 5 . | . . . . . High Security . | . . . . . Max Security . | . . . . . Peak Influence 283 | . 7 135 182 283 Initial 75 | . . . 40 75 Average 58 | . . 53 55 106 Influence Increases 983 | . 7 155 416 405 Destroy 0b10 Robot/C 560 | . . 120 280 160 Destroy 0b10 Robot/NC 60 | . . . 35 25 Destroy Leader 126 | . . 20 62 44 Successful Hack 32 | . 7 . 9 16 Disable Machine 30 | . . . . 30 Destroy Structure 55 | . . . . 55 Lose Combat Pursuer 120 | . . 15 30 75 Influence Decreases 750 | . 7 50 342 351 Entered New Map 169 | . . . 65 104 Time Decay 396 | . 7 50 202 137 Lost Part 185 | . . . 75 110 Squads Dispatched 6 | . 1 . 2 3 Investigation 2 | . . . 1 1 Extermination . | . . . . . Reinforcement 4 | . 1 . 1 2 Assault . | . . . . . Garrison . | . . . . . Intercept . | . . . . . Searches Triggered . | . . . . . Construction Impeded . | . . . . . Haulers Reinforced . | . . . . . Active Scanning Responses . | . . . . . Cargo Convoy Interrupts . | . . . . . Stealth | -11 -10 -10 -9 -8 --------- Run | Yrd Mat Min Mat Mat Distress Signals 5 | . . . 4 1 Communications Jammed . | . . . . . Distress Signals . | . . . . . Times Spotted 61 | . 3 7 23 28 Peak Tracking Total 12 | . 2 3 5 12 Tactical Retreats 3 | . . 1 1 1 Traps | -11 -10 -10 -9 -8 ------- Run | Yrd Mat Min Mat Mat Traps Triggered 1 | . . . 1 . Indirectly . | . . . . . Trap Hack Attempts . | . . . . . Triggered . | . . . . . Disarmed . | . . . . . Reprogrammed . | . . . . . Reused . | . . . . . Traps Extracted . | . . . . . Installed . | . . . . . Triggered . | . . . . . Machines | -11 -10 -10 -9 -8 ---------- Run | Yrd Mat Min Mat Mat Machines Disabled 2 | . . . . 2 Max in Single Turn 1 | . . . . 1 Machines Repaired . | . . . . . Machines Dismantled . | . . . . . Machines Sabotaged . | . . . . . Overloaded Fab Kills . | . . . . . Hacking | -11 -10 -10 -9 -8 --------- Run | Yrd Mat Min Mat Mat Machines Accessed 15 | . 5 . 5 5 Terminals 13 | . 4 . 4 5 Fabricators . | . . . . . Repair Stations . | . . . . . Recycling Units 2 | . 1 . 1 . Scanalyzers . | . . . . . Garrison Access . | . . . . . Total Hacks 39 | . 13 . 16 10 Successful 11 | . 5 . 5 1 Failed 28 | . 8 . 11 9 Catastrophic 5 | . 1 . 2 2 Database Lockouts . | . . . . . Manual 35 | . 11 . 14 10 Terminals 35 | . 11 . 14 10 Fabricators . | . . . . . Repair Stations . | . . . . . Recycling Units 4 | . 2 . 2 . Scanalyzers . | . . . . . Garrison Access . | . . . . . Terminal Hacks 2 | . 1 . 1 . Branch Access Points 2 | . 1 . 1 . Fabricator Hacks . | . . . . . Repair Station Hacks . | . . . . . Recycling Unit Hacks 4 | . 2 . 2 . Report Inventory 2 | . 1 . 1 . Retrieve Components 2 | . 1 . 1 . Scanalyzer . | . . . . . Garrison Access Hacks . | . . . . . Unauthorized Hacks 5 | . 2 . 2 1 Terminals 5 | . 2 . 2 1 Assimilate 1 | . . . . 1 Botnet 4 | . 2 . 2 . Fabricators . | . . . . . Repair Stations . | . . . . . Recycling Units . | . . . . . Scanalyzers . | . . . . . Garrison Access . | . . . . . Data Cores Recovered . | . . . . . Used . | . . . . . Hacking Detections 12 | . 3 . 4 5 Full Trace Events 2 | . . . 1 1 Feedback Events . | . . . . . Feedback Blocked . | . . . . . Robot Schematics Acquired . | . . . . . Robots Built . | . . . . . Authchips . | . . . . . Time . | . . . . . Total Robot Build Rating . | . . . . . Part Schematics Acquired . | . . . . . Parts Built . | . . . . . Authchips . | . . . . . Time . | . . . . . Total Part Build Rating . | . . . . . Parts Repaired . | . . . . . Time . | . . . . . Parts Recycled . | . . . . . Recycled Matter . | . . . . . Retrieved Matter . | . . . . . Retrieved Components 3 | . 1 . 2 . Parts Scanalyzed . | . . . . . Part Schematics Acquired . | . . . . . Parts Damaged . | . . . . . Bothacking | -11 -10 -10 -9 -8 ------------ Run | Yrd Mat Min Mat Mat Used RIF Installer . | . . . . . Robots Hacked . | . . . . . Non-combat . | . . . . . Combat . | . . . . . Robot Hacks Applied . | . . . . . Relay Couplers Released . | . . . . . Fabnet Peak Effective % . | . . . . . Robots Rewired . | . . . . . Allies Hacked . | . . . . . Hacks Repelled . | . . . . . Allies | -11 -10 -10 -9 -8 -------- Run | Yrd Mat Min Mat Mat Total Allies . | . . . . . Largest Group . | . . . . . Highest-Rated Group . | . . . . . Highest-Rated Ally . | . . . . . Total Orders . | . . . . . Ally Attacks . | . . . . . Total Damage . | . . . . . Kills . | . . . . . Allies Corrupted . | . . . . . Allies Melted . | . . . . . Intel | -11 -10 -10 -9 -8 ------- Run | Yrd Mat Min Mat Mat Active Infowar (turns) 748 | . 110 198 196 244 Sensors 244 | . . . . 244 Structural 504 | . 110 198 196 . Robot Analysis Total . | . . . . . Derelict Logs Recovered 1 | . . 1 . . Drone Launches . | . . . . . Drone Recoveries . | . . . . . Exploration | -11 -10 -10 -9 -8 ------------- Run | Yrd Mat Min Mat Mat Turns Passed 1164 | 55 146 198 479 286 Spaces Moved 867 | 47 137 147 286 250 Core 15 | 10 . . . 5 Treads . | . . . . . Legs . | . . . . . Wheels 439 | 37 137 147 106 12 Hover 413 | . . . 180 233 Flight . | . . . . . Fastest Speed 48 | 50 100 100 52 48 Average Speed 83 | 95 100 107 83 58 Slowest Speed 250 | 200 100 130 180 250 Overloaded Moves . | . . . . . Propulsion Burnouts . | . . . . . Robots Hopped . | . . . . . Potential Cave-ins . | . . . . . Cave-ins Triggered . | . . . . . Exploration Rate (%) 32 | 4 36 50 40 30 Regions Visited 4 Branch Regions 1 Pre-discovered Areas . | . . . . . Known Exits Taken 1 | . 1 . . . Unknown Exits Taken 3 | 1 . 1 1 . Scrap Searched 1 | . . 1 . . Spaces Dug . | . . . . . Terrain Destroyed 82 | . . . . 82 Melee . | . . . . . Projectile . | . . . . . AOE 82 | . . . . 82 Terrain Rammed . | . . . . . Walls Destroyed . | . . . . . Machines Disabled . | . . . . . Actions | -11 -10 -10 -9 -8 --------- Run | Yrd Mat Min Mat Mat Total 1118 | 54 143 176 420 325 Wait 66 | . . 15 33 18 Move 863 | 46 136 146 285 250 Hop . | . . . . . Pick Up 26 | 2 4 7 12 1 Fast Attach 14 | 6 1 . 4 3 Attach 15 | . . . 10 5 Detach 1 | . . . . 1 Swap 11 | . 1 1 3 6 Drop 10 | . . 1 8 1 Fire 111 | . 1 6 64 40 Melee . | . . . . . Ram 1 | . . . 1 . Kick . | . . . . . Crush . | . . . . . Escape Stasis . | . . . . . Rewire . | . . . . . Trap . | . . . . . Miscellaneous . | . . . . . Route ------- -11/Scrapyard -10/Materials (discovered 2 exits: *Mat / *Min) -10/Mines (discovered 2 exits: *Mat / Sub) -9/Materials (discovered 3 exits: *Mat / Min x2) -8/Materials (discovered 1 exit: [*Sto]) History --------- Turn | Location | Event 31 | -11/Scrapyard | Discovered new exit (range 16) 56 | -11/Scrapyard | Entered Materials 131 | -10/Materials | Discovered new exit (range 16) 178 | -10/Materials | Identified exit to Mines 202 | -10/Materials | Entered Mines 254 | -10/Mines | Identified exit to Subcaves 276 | -10/Mines | Met a Derelict bent on vengeance 303 | -10/Mines | Build established: Mutant 349 | -10/Mines | Discovered new exit (range 15) 400 | -10/Mines | Entered Materials 400 | -9/Materials | Evolved 2 slots: Propulsion x1, Utility x1 607 | -9/Materials | Core integrity fell below 50% 627 | -9/Materials | Lost 8 parts (1p2n1u4w) 845 | -9/Materials | Core integrity fell below 20% 866 | -9/Materials | Identified exit to Mines 868 | -9/Materials | Discovered new exit (range 15) 879 | -9/Materials | Entered another Materials area 879 | -8/Materials | Evolved 2 slots: Propulsion x1, Utility x1 1026 | -8/Materials | Discovered new exit (range 12) 1136 | -8/Materials | Core integrity fell below 50% 1147 | -8/Materials | Core integrity fell below 20% 1155 | -8/Materials | Destroyed 8 combat bots 1165 | -8/Materials | Destroyed by G-47 Trooper with Particle Gun Last Messages --------------- 01144_ K-01 Serf collects debris. 01144_ U-05 Engineer lays Concrete. 01146_ U-05 Engineer builds a Wall. 01146_ K-01 Serf collects debris. 01147_ The unstable cave ceiling collapses. 01147_ K-01 Serf collects debris. 01147_ U-05 Engineer lays Concrete. 01148_ The unstable cave ceiling collapses. 01148_ U-05 Engineer lays Concrete. 01150_ Acquired Wheel. 01150_ U-05 Engineer lays Concrete. 01150_ K-01 Serf collects debris. 01151_ U-05 Engineer builds a Wall. 01151_ U-05 Engineer lays Concrete. 01152_ Acquired 15 matter. 01152_ U-05 Engineer lays Concrete. 01153_ K-01 Serf collects debris. 01154_ U-05 Engineer lays Concrete. 01156_ K-01 Serf collects debris. 01161_ K-01 Serf cleans the Matter Filter. Map ----- +----------------------------------------------------+ | ???????????? # ??###+######+########## ###???? | | ???????????? # ????????# #????#*#?????? | | ????????????!# ????????# """ """ #????#[#?????? | | ????????????## ##???????# """ """ #????#[#?????? | | ????????????## ##??????# """ """ #????#[#?????? | | ???????????### #??????# #????#%#?????? | | ??????????## % #??????#] ! #????#[#?????? | | ??????????# =!% ######## #????#[#?????? | | ??????????# =%* + """T""" #????=[!?????? | | ?????????## ####################???? ! ?????? | | ?????????# # #??????????????????????? ?????? | | ?????????# ##??????????????????????